{"text_format":"3","workbook":"xlsx","n_sheets":3,"sheets":["Récapitulatif","Acheter une voiture","Covoiturage"],"not_rendered":{"charts":1,"defined_names":33},"read":"whole","date_system":"1900"}

{"sheet":"Récapitulatif","index":0,"n_rows":16,"n_cols":4,"rows_kept":16}
[null,"Comparatif : achat de voiture et covoiturage"]
[null,"Déplacement moyen"]
[null,"Nombre moyen de déplacements chaque jour",2]
[null,"Durée moyenne pour chaque déplacement",20,"min(s)"]
[null,"Distance moyenne pour chaque déplacement",{"v":10,"d":"10.00"},"kilomètres"]
[null,"Kilométrage annuel",{"$f":"IFERROR(NombreMoyenDeDéplacementsChaqueJour*AveDistancePerTrip*365,\"\")","v":{"v":7300,"d":"7,300"}},"kilomètres"]
[null,"Coût du temps passé"]
[null,"Taux horaire",{"v":20,"d":"20.00 €"}]
[null,"Synthèse du coût annuel"]
[" ","Colonne1","Acheter une voiture","Covoiturage"]
[null,"Prix à l’achat",{"$f":"CoûtAnnuelDeL’achat","v":{"v":7187.314844765674,"d":"7,187.31 €"}},"-"]
[null,"Coûts d’utilisation de la voiture",{"$f":"CoûtD’utilisationAnnuel","v":{"v":2990,"d":"2,990.00 €"}},"-"]
[null,"Coûts de carburant",{"$f":"CoûtAnnuelEnCarburant","v":{"v":617.6923076923076,"d":"617.69 €"}},"-"]
[null,"Coût du trajet","-",{"$f":"CoûtAnnuelDesDépenses","v":{"v":12340.65,"d":"12,340.65 €"}}]
[null,"Coût du temps passé",{"$f":"AnnualCostOfTime_BuyCar","v":{"v":7300,"d":"7,300.00 €"}},{"$f":"AnnualCostOfTime_Ridesharing","v":{"v":2190,"d":"2,190.00 €"}}]
[null,"Coût total annuel",{"$f":"SUBTOTAL(109,Tableau7[Acheter une voiture])","v":{"v":18095.007152457983,"d":"18,095.01 €"}},{"$f":"SUBTOTAL(109,Tableau7[Covoiturage])","v":{"v":14530.65,"d":"14,530.65 €"}}]

{"sheet":"Acheter une voiture","index":1,"n_rows":28,"n_cols":4,"rows_kept":28}
[null,"Acheter une voiture"]
[null,"Prix à l’achat"]
[]
[null,"Prix de la voiture",{"v":30000,"d":"30,000.00 €"}]
[null,"T.V.A.",{"v":0.0575,"d":"0.06 €"}]
[null,"Charges à l’achat",{"v":220,"d":"220.00 €"}]
[null,"Acompte",{"v":3000,"d":"3,000.00 €"},"mois"]
[null,"Conditions d’emprunt",{"v":60,"d":"60.00 €"}]
[null,"Taux d’intérêt",{"v":0.045,"d":"0.05 €"}]
[null,"Coût annuel de l’achat",{"$f":"IFERROR(-PMT(TauxD’intérêt,ConditionsD’emprunt/12,PrixDeLaVoiture*(1+T.V.A.)-Acompte)+(ChargesÀL’achat+Acompte)/(ConditionsD’emprunt/12),\"\")","v":{"v":7187.314844765674,"d":"7,187.31 €"}}]
[null,{"$f":"IF(CoûtAnnuelDeL’achat=\"\",\"\",\"Pour un emprunt de \" & TEXT(ConditionsD’emprunt/12,\"0,0\") & \" ans\")","v":"Pour un emprunt de 5,0 ans"}]
[null,"Coûts d’utilisation de la voiture"]
[null,"Entretien/Réparations",{"v":1000,"d":"1,000.00 €"},"annuel"]
[null,"Assurance",{"v":815,"d":"815.00 €"},"annuel"]
[null,"Carte grise & taxes",{"v":75,"d":"75.00 €"},"annuel"]
[null,"Parking",{"v":500,"d":"500.00 €"},"annuel"]
[null,"Taxe foncière sur le garage",{"v":500,"d":"500.00 €"},"annuel"]
[null,"Autres dépenses de garage",{"v":100,"d":"100.00 €"},"annuel"]
[null,"Coût d’utilisation annuel",{"$f":"SUBTOTAL(109,Tableau3[Colonne3])","v":{"v":2990,"d":"2,990.00 €"}}]
[null,"Coûts de carburant"]
[null,"Coût en carburant",{"v":3.3,"d":"3.30 €"},"au litre"]
[null,"Efficacité énergétique",39,"km / l"]
[null,"Coût annuel en carburant",{"$f":"IFERROR(TotalMileage/EfficacitéÉnergétique*CoûtEnCarburant,\"\")","v":{"v":617.6923076923076,"d":"617.69 €"}}]
[null,{"$f":"IF(CoûtAnnuelEnCarburant=\"\",\"\",\"Sur la base du kilométrage annuel total de \" & TEXT(TotalMileage,\"# ##0\") & \" km\")","v":"Sur la base du kilométrage annuel total de 7 300 km"}]
[null,"Coût du temps passé"]
[null,"Durée moyenne de mise au parking",10,"min"]
[null,"Coût annuel du temps passé",{"$f":"IFERROR((AveTimePerTrip+DuréeMoyenneDeMiseAuParking)*NombreMoyenDeDéplacementsChaqueJour/60*TauxHoraire*365,\"\")","v":{"v":7300,"d":"7,300.00 €"}}]
[null,{"$f":"IF(AnnualCostOfTime_BuyCar=\"\",\"\",\"Sur la base de \" & NombreMoyenDeDéplacementsChaqueJour & \" voyages de \" & AveTimePerTrip + DuréeMoyenneDeMiseAuParking & \" min par jour et un tarif de horaire de \" & TEXT(TauxHoraire,\"# ##0,00 €\"))","v":"Sur la base de 2 voyages de 30 min par jour et un tarif de horaire de 20,00 €"}]

{"sheet":"Covoiturage","index":2,"n_rows":14,"n_cols":4,"rows_kept":14}
[null,"Covoiturage"]
[null,"Frais de covoiturage"]
[null,"Prix de base",{"v":2.3,"d":"2.30 €"},"par trajet"]
[null,"Prix au kilomètre",{"v":1,"d":"1.00 €"},"par kilomètre"]
[null,"Prix horaire",{"v":0.12,"d":"0.12 €"},"par min"]
[null,"Multiplicateur moyen en cas de haute demande",{"v":2.5,"d":"2.50"}]
[null,"Pourcentage de trajets lors des périodes de haute demande",{"v":0.1,"d":"10%"}]
[null,"Coût annuel des dépenses",{"$f":"IFERROR((PrixDeBase+PrixAuKilomètre*AveDistancePerTrip+PrixHoraire*AveTimePerTrip)*NombreMoyenDeDéplacementsChaqueJour*365*((1-PercentRideDuringSurge)+MultiplicateurMoyenEnCasDeHauteDemande*PercentRideDuringSurge),\"\")","v":{"v":12340.65,"d":"12,340.65 €"}}]
[null,{"$f":"IF(CoûtAnnuelDesDépenses=\"\",\"\",\"Sur la base de \" & NombreMoyenDeDéplacementsChaqueJour & \" voyages de \" & AveDistancePerTrip & \" km et de \" & AveTimePerTrip & \" min par jour\")","v":"Sur la base de 2 voyages de 10 km et de 20 min par jour"}]
[null,"Coût du temps passé"]
[null,"Temps d’attente moyen par trajet",{"v":5,"d":"5.00 €"},"min"]
[null,"Temps productif pendant la période de déplacement",{"v":0.8,"d":"0.80 €"}]
[null,"Coût annuel du temps passé",{"$f":"IFERROR((AveWaitTime+AveTimePerTrip*(1-ProductivePercent))*NombreMoyenDeDéplacementsChaqueJour/60*TauxHoraire*365,\"\")","v":{"v":2190,"d":"2,190.00 €"}}]
[null,{"$f":"IF(AnnualCostOfTime_Ridesharing=\"\",\"\",\"Sur la base de \" & NombreMoyenDeDéplacementsChaqueJour & \" voyages de \" & AveTimePerTrip & \" min par jour et un tarif de horaire de \" & TEXT(TauxHoraire,\"# ##0,00 €\"))","v":"Sur la base de 2 voyages de 20 min par jour et un tarif de horaire de 20,00 €"}]